[Event "German Cup 2019"]
[Site "Magdeburg"]
[Date "2019.05.30"]
[Round "1.1"]
[White "Kueppers, Timo"]
[Black "Kurth, Uwe"]
[Result "1/2-1/2"]
[ECO "A30"]
[WhiteElo "2312"]
[BlackElo "2027"]
[Annotator "ChessBase"]
[PlyCount "81"]
[EventDate "2019.05.30"]
[EventType "k.o."]
[EventCountry "GER"]
[SourceTitle "playchess.com"]
[Source "ChessBase"]
[SourceQuality "1"]
[TimeControl "40/5400+30:900+30"]

1. c4 {[%emt 0:00:00]} c5 {[%emt 0:00:00]} 2. Nf3 {[%emt 0:00:00]} b6 {[%emt 0:00:00]} 3. g3 {[%emt 0:01:07]} Bb7 {[%emt 0:00:07]} 4. Bg2 {[%emt 0:00:04]} g6 {[%emt 0:00:19]} 5. O-O {[%emt 0:00:12]} Bg7 {[%emt 0:00:06]} 6. Nc3 {[%emt 0:00:17]} Nf6 {[%emt 0:00:38]} 7. d4 {[%emt 0:08:33]} cxd4 {[%emt 0:01:42]} 8. Nxd4 {[%emt 0:02:40]} Bxg2 {[%emt 0:00:08]} 9. Kxg2 {[%emt 0:00:05]} O-O {[%emt 0:00:30]} 10. Nc2 {[%emt 0:05:06]} d6 {[%emt 0:08:39]} 11. b3 {[%emt 0:11:36]} Nbd7 {[%emt 0:02:12]} 12. Bd2 {[%emt 0:00:59]} Nc5 {[%emt 0:03:51]} 13. Be1 {[%emt 0:10:19]} Nfe4 {[%emt 0:25:22]} 14. Nd4 {[%emt 0:18:07]} Rc8 {[%emt 0:06:00]} 15. Nxe4 {[%emt 0:03:18]} Nxe4 {[%emt 0:00:09]} 16. f3 {[%emt 0:00:22]} Nc5 {[%emt 0:01:43]} 17. Rc1 {[%emt 0:10:38]} d5 {[%emt 0:04:38]} 18. Bf2 {[%emt 0:06:51]} dxc4 {[%emt 0:08:36]} 19. Rxc4 {[%emt 0:00:15]} Qd7 {[%emt 0:01:23]} 20. b4 {[%emt 0:01:33]} Rfd8 {[%emt 0:08:57]} 21. Qc1 {[%emt 0:01:59]} e5 {[%emt 0:06:47]} 22. bxc5 {[%emt 0:01:01]} exd4 {[%emt 0:00:10]} 23. c6 {[%emt 0:01:21]} Qe6 {[%emt 0:00:53]} 24. Qc2 {[%emt 0:02:32]} Rd6 {[%emt 0:03:09]} 25. c7 {[%emt 0:00:46]} Rd7 {[%emt 0:00:33]} 26. Rc1 {[%emt 0:03:54]} Bh6 {[%emt 0:03:56]} 27. Rd1 {[%emt 0:00:10]} Qe7 {[%emt 0:04:09]} 28. Rdxd4 {[%emt 0:00:40]} Rdxc7 {[%emt 0:00:52]} 29. Rxc7 {[%emt 0:00:10]} Rxc7 {[%emt 0:01:43]} 30. Qd3 {[%emt 0:00:35]} Bf8 {[%emt 0:01:19]} 31. Rd8 {[%emt 0:00:35]} Qf6 {[%emt 0:03:27]} 32. Be3 {[%emt 0:01:06]} g5 {[%emt 0:01:41]} 33. Re8 {[%emt 0:04:44]} h6 {[%emt 0:02:00]} 34. Bd4 {[%emt 0:02:02]} Qd6 {[%emt 0:00:34]} 35. Qe3 {[%emt 0:03:00]} Re7 {[%emt 0:00:16]} 36. Rxe7 {[%emt 0:00:04]} Qxe7 {[%emt 0:00:09]} 37. Qd3 {[%emt 0:01:07]} Bg7 {[%emt 0:00:39]} 38. Bxg7 {[%emt 0:00:07]} Kxg7 {[%emt 0:00:05]} 39. e4 {[%emt 0:00:52]} Qb4 {[%emt 0:01:13]} 40. Qe2 {[%emt 0:00:22]} a5 {[%emt 0:00:21]} 41. e5 {[%emt 0:16:21]} 1/2-1/2

[Event "German Cup 2019"]
[Site "Magdeburg"]
[Date "2019.05.30"]
[Round "1.1"]
[White "Kuberczyk, Christoph"]
[Black "Freiherr von Hauff, Christopher"]
[Result "1-0"]
[ECO "A59"]
[WhiteElo "2271"]
[BlackElo "1954"]
[Annotator "ChessBase"]
[PlyCount "87"]
[EventDate "2019.05.30"]
[EventType "k.o."]
[EventCountry "GER"]
[SourceTitle "playchess.com"]
[Source "ChessBase"]
[SourceQuality "1"]
[TimeControl "40/5400+30:900+30"]

1. d4 {[%emt 0:00:29]} Nf6 {[%emt 0:00:00]} 2. c4 {[%emt 0:00:17]} c5 {[%emt 0:00:00]} 3. d5 {[%emt 0:00:19]} b5 {[%emt 0:00:23]} 4. cxb5 {[%emt 0:00:38]} a6 {[%emt 0:00:03]} 5. bxa6 {[%emt 0:00:12]} g6 {[%emt 0:00:07]} 6. Nc3 {[%emt 0:00:05]} Bxa6 {[%emt 0:00:10]} 7. e4 {[%emt 0:00:11]} Bxf1 {[%emt 0:00:21]} 8. Kxf1 {[%emt 0:00:03]} d6 {[%emt 0:00:13]} 9. Nf3 {[%emt 0:00:07]} Bg7 {[%emt 0:02:04]} 10. g3 {[%emt 0:00:38]} O-O {[%emt 0:01:04]} 11. Kg2 {[%emt 0:00:10]} Na6 {[%emt 0:01:56]} 12. Qe2 {[%emt 0:01:37]} Qb6 {[%emt 0:06:06]} 13. Rb1 {[%emt 0:13:48]} Rfb8 {[%emt 0:04:36]} 14. Bf4 {[%emt 0:06:21]} Nc7 {[%emt 0:06:54]} 15. b3 {[%emt 0:09:46]} Qa6 {[%emt 0:13:01]} 16. Qd2 {[%emt 0:07:23]} Nb5 {[%emt 0:04:56]} 17. Nxb5 {[%emt 0:03:20]} Rxb5 {[%emt 0:00:38]} 18. e5 {[%emt 0:01:14]} dxe5 {[%emt 0:03:28]} 19. Bxe5 {[%emt 0:00:31]} Ne4 {[%emt 0:07:12]} 20. Qc2 {[%emt 0:07:58]} Bxe5 {[%emt 0:01:02]} 21. Nxe5 {[%emt 0:02:25]} Nf6 {[%emt 0:01:47]} 22. a4 {[%emt 0:00:24]} Ra5 {[%emt 0:05:39]} 23. Nc6 {[%emt 0:04:31]} Nxd5 {[%emt 0:00:28]} 24. Nxa5 {[%emt 0:00:08]} Qxa5 {[%emt 0:00:06]} 25. Rbc1 {[%emt 0:02:02]} Rc8 {[%emt 0:01:26]} 26. Qe4 {[%emt 0:02:18]} e6 {[%emt 0:01:46]} 27. Rc4 {[%emt 0:04:58]} Rb8 {[%emt 0:03:45]} 28. Rhc1 {[%emt 0:04:56]} Rxb3 {[%emt 0:02:59]} 29. Rxc5 {[%emt 0:03:03]} Qa6 {[%emt 0:06:32]} 30. Qe5 {[%emt 0:11:03]} Ne7 {[%emt 0:06:28]} 31. Rc7 {[%emt 0:02:37]} Qa8+ {[%emt 0:01:09]} 32. Kh3 {[%emt 0:02:34]} Qf8 {[%emt 0:00:51]} 33. Rxe7 {[%emt 0:01:06]} Rf3 {[%emt 0:01:59]} 34. Rec7 {[%emt 0:02:21]} Rf5 {[%emt 0:00:36]} 35. Qb2 {[%emt 0:03:43]} Qh6+ {[%emt 0:00:23]} 36. Kg2 {[%emt 0:00:02]} e5 {[%emt 0:00:18]} 37. a5 {[%emt 0:01:45]} Qh5 {[%emt 0:01:05]} 38. R7c3 {[%emt 0:01:54]} Qg4 {[%emt 0:00:12]} 39. Re3 {[%emt 0:00:27]} Rh5 {[%emt 0:00:17]} 40. h4 {[%emt 0:00:31]} Rxh4 {[%emt 0:02:33]} 41. Qb8+ {[%emt 0:15:05]} Kg7 {[%emt 0:15:03]} 42. Qxe5+ {[%emt 0:00:04]} Kg8 {[%emt 0:00:44]} 43. Rc8+ {[%emt 0:00:10]} Qxc8 {[%emt 0:00:04]} 44. Qe8+ {[%emt 0:00:05]} 1-0

[Event "German Cup 2019"]
[Site "Magdeburg"]
[Date "2019.05.30"]
[Round "1.1"]
[White "Cofmann, Veaceslav"]
[Black "Steffens, Olaf"]
[Result "1-0"]
[ECO "C01"]
[WhiteElo "2250"]
[BlackElo "2201"]
[Annotator "ChessBase"]
[PlyCount "61"]
[EventDate "2019.05.30"]
[EventType "k.o."]
[EventCountry "GER"]
[SourceTitle "playchess.com"]
[Source "ChessBase"]
[SourceQuality "1"]
[TimeControl "40/5400+30:900+30"]

1. e4 {[%emt 0:00:00]} a6 {[%emt 0:04:44]} 2. d4 {[%emt 0:00:00]} e6 {[%emt 0:00:48]} 3. Nf3 {[%emt 0:00:24]} b5 {[%emt 0:00:24]} 4. Bd3 {[%emt 0:00:35]} c5 {[%emt 0:00:18]} 5. c3 {[%emt 0:00:27]} Bb7 {[%emt 0:00:24]} 6. Be3 {[%emt 0:00:23]} Nf6 {[%emt 0:01:11]} 7. Nbd2 {[%emt 0:00:20]} Nc6 {[%emt 0:12:13]} 8. a3 {[%emt 0:02:41]} Ng4 {[%emt 0:17:49]} 9. Bf4 {[%emt 0:05:23]} Qb6 {[%emt 0:06:11]} 10. h3 {[%emt 0:02:33]} Nf6 {[%emt 0:01:34]} 11. Be3 {[%emt 0:02:13]} Be7 {[%emt 0:06:21]} 12. b4 {[%emt 0:00:51]} d6 {[%emt 0:02:27]} 13. Qe2 {[%emt 0:01:38]} c4 {[%emt 0:09:12]} 14. Bc2 {[%emt 0:01:56]} Qc7 {[%emt 0:00:48]} 15. O-O {[%emt 0:01:32]} e5 {[%emt 0:05:39]} 16. d5 {[%emt 0:00:39]} Nb8 {[%emt 0:00:48]} 17. a4 {[%emt 0:00:05]} Nbd7 {[%emt 0:01:09]} 18. Nb1 {[%emt 0:01:05]} O-O {[%emt 0:11:19]} 19. Na3 {[%emt 0:00:36]} Qb8 {[%emt 0:01:20]} 20. Nd2 {[%emt 0:03:31]} h6 {[%emt 0:08:04]} 21. axb5 {[%emt 0:00:56]} axb5 {[%emt 0:00:53]} 22. Nxb5 {[%emt 0:00:09]} Bxd5 {[%emt 0:02:55]} 23. Na3 {[%emt 0:00:10]} Bb7 {[%emt 0:02:13]} 24. Naxc4 {[%emt 0:02:48]} Rc8 {[%emt 0:01:04]} 25. f4 {[%emt 0:06:41]} exf4 {[%emt 0:01:29]} 26. Bxf4 {[%emt 0:00:26]} Ne5 {[%emt 0:00:07]} 27. Rxa8 {[%emt 0:02:50]} Bxa8 {[%emt 0:01:13]} 28. Bb3 {[%emt 0:00:11]} Qb5 {[%emt 0:00:27]} 29. Bxe5 {[%emt 0:00:42]} dxe5 {[%emt 0:00:08]} 30. Rf5 {[%emt 0:00:06]} Bd6 {[%emt 0:01:15]} 31. Rxf6 {[%emt 0:00:22]} 1-0

[Event "German Cup 2019"]
[Site "Magdeburg"]
[Date "2019.05.30"]
[Round "1.1"]
[White "Hoehn, Michael"]
[Black "Uphoff, Lennart"]
[Result "0-1"]
[ECO "A06"]
[WhiteElo "2026"]
[BlackElo "2145"]
[Annotator "ChessBase"]
[PlyCount "66"]
[EventDate "2019.05.30"]
[EventType "k.o."]
[EventCountry "GER"]
[SourceTitle "playchess.com"]
[Source "ChessBase"]
[SourceQuality "1"]
[TimeControl "40/5400+30:900+30"]

1. Nf3 {[%emt 0:00:00]} Nf6 {[%emt 0:00:00]} 2. b3 {[%emt 0:00:06]} d5 {[%emt 0:02:08]} 3. Bb2 {[%emt 0:01:47]} c5 {[%emt 0:02:21]} 4. g3 {[%emt 0:01:43]} Nc6 {[%emt 0:00:23]} 5. d4 {[%emt 0:01:52]} Bf5 {[%emt 0:05:36]} 6. Bg2 {[%emt 0:03:07]} e6 {[%emt 0:00:23]} 7. O-O {[%emt 0:01:21]} Be7 {[%emt 0:04:38]} 8. e3 {[%emt 0:12:48]} Rc8 {[%emt 0:03:55]} 9. c3 {[%emt 0:21:27]} O-O {[%emt 0:07:04]} 10. Re1 {[%emt 0:03:34]} b5 {[%emt 0:15:16]} 11. Ne5 {[%emt 0:06:39]} cxd4 {[%emt 0:10:08]} 12. exd4 {[%emt 0:02:40]} Nxe5 {[%emt 0:01:24]} 13. dxe5 {[%emt 0:00:52]} Ne4 {[%emt 0:01:36]} 14. Bxe4 {[%emt 0:05:41]} Bxe4 {[%emt 0:03:14]} 15. Nd2 {[%emt 0:00:12]} Bg6 {[%emt 0:00:58]} 16. Qe2 {[%emt 0:09:22]} Qb6 {[%emt 0:12:32]} 17. Rac1 {[%emt 0:04:57]} Rc7 {[%emt 0:04:36]} 18. h4 {[%emt 0:02:13]} h6 {[%emt 0:03:40]} 19. Kg2 {[%emt 0:02:42]} Rfc8 {[%emt 0:02:11]} 20. Nf1 {[%emt 0:02:24]} b4 {[%emt 0:07:34]} 21. cxb4 {[%emt 0:03:09]} Rc2 {[%emt 0:03:05]} 22. Qe3 {[%emt 0:02:20]} Bxb4 {[%emt 0:00:22]} 23. Rxc2 {[%emt 0:00:50]} Rxc2 {[%emt 0:00:15]} 24. Bd4 {[%emt 0:00:29]} Qa6 {[%emt 0:03:41]} 25. Rc1 {[%emt 0:01:26]} Re2 {[%emt 0:02:04]} 26. Rc8+ {[%emt 0:00:28]} Kh7 {[%emt 0:00:33]} 27. Qc1 {[%emt 0:00:06]} Qxa2 {[%emt 0:00:39]} 28. Qc7 {[%emt 0:03:30]} Qxb3 {[%emt 0:02:04]} 29. Qd8 {[%emt 0:02:40]} Be4+ {[%emt 0:00:11]} 30. Kg1 {[%emt 0:00:13]} Qf3 {[%emt 0:00:18]} 31. Qg8+ {[%emt 0:00:04]} Kg6 {[%emt 0:00:07]} 32. h5+ {[%emt 0:00:10]} Kxh5 {[%emt 0:00:35]} 33. g4+ {[%emt 0:00:20]} Kg6 {[%emt 0:00:07]} 0-1

[Event "German Cup 2019"]
[Site "Magdeburg"]
[Date "2019.05.30"]
[Round "1.1"]
[White "Kollenberg, Cedric"]
[Black "Bold, Andre"]
[Result "1/2-1/2"]
[ECO "E18"]
[WhiteElo "2008"]
[BlackElo "2064"]
[Annotator "NA"]
[PlyCount "47"]
[EventDate "2019.05.30"]
[EventType "k.o."]
[EventCountry "GER"]
[SourceTitle "playchess.com"]
[Source "ChessBase"]
[SourceQuality "1"]
[TimeControl "40/5400+30:900+30"]

1. d4 {[%emt 0:00:00]} Nf6 {[%emt 0:00:00]} 2. c4 {[%emt 0:00:00]} b6 {[%emt 0:00:00]} 3. Nf3 {[%emt 0:00:12]} Bb7 {[%emt 0:00:00]} 4. g3 {[%emt 0:00:16]} e6 {[%emt 0:00:01]} 5. Bg2 {[%emt 0:00:05]} Be7 {[%emt 0:00:03]} 6. O-O {[%emt 0:00:07]} O-O {[%emt 0:00:03]} 7. Nc3 {[%emt 0:00:19]} Ne4 {[%emt 0:00:04]} 8. Bd2 {[%emt 0:02:02]} Nxc3 {[%emt 0:12:34]} 9. Bxc3 {[%emt 0:00:06]} d5 {[%emt 0:00:17]} 10. Ne5 {[%emt 0:17:20]} Nd7 {[%emt 0:12:06] E18: Queen's Indian: Old Main Line (4 g3 Bb7 5 Bg2 Be7 6 0-0 0-0 7 Nc3)} 11. Qa4 {[%emt 0:12:04]} (11. cxd5 exd5 12. Qc2 Re8 13. Rfd1 Bd6 14. Nc4 Bf8 15. Rac1 Qe7 16. e3 Nf6 17. Ne5 a5 18. a3 {0-1 (52) Xu,Y (2545)-Bu,X (2725) China 2018}) 11... Nxe5 {[%emt 0:06:40]} 12. dxe5 {[%emt 0:00:07]} c6 {[%emt 0:05:07]} 13. Rfd1 {[%emt 0:03:59]} f5 $146 {[%emt 0:05:01]} ({Predecessor:} 13... Qc7 14. Rac1 dxc4 15. Qxc4 Rfd8 16. Qg4 c5 17. e4 Rxd1+ 18. Rxd1 {0-1 (43) Dors,R (2228)-Kantorik,M (2270) Slovakia 2013}) 14. e3 {[%emt 0:13:24]} a6 {[%emt 0:05:45]} 15. cxd5 {[%emt 0:03:11]} cxd5 {[%emt 0:00:31]} 16. Rac1 {[%emt 0:01:16]} b5 {[%emt 0:03:27]} 17. Qb3 {[%emt 0:03:58]} Rc8 {[%emt 0:04:10]} 18. Bd4 {[%emt 0:04:13]} Qa5 {[%emt 0:03:00]} 19. Bf1 $14 {[%emt 0:05:31]} Rc7 {[%emt 0:08:04]} 20. Bc3 {[%emt 0:04:33]} Qb6 {[%emt 0:05:12]} 21. Bd4 {[%emt 0:06:01]} Qa5 {[%emt 0:00:13]} 22. Bc3 {[%emt 0:00:07]} Qb6 {[%emt 0:00:04]} 23. Bd4 {[%emt 0:00:06]} Qa5 {[%emt 0:00:03]} 24. Bc3 {[%emt 0:00:13]} 1/2-1/2

[Event "German Cup 2019"]
[Site "Magdeburg"]
[Date "2019.05.30"]
[Round "1.1"]
[White "Haeussler, Daniel"]
[Black "Gressmann, Moritz"]
[Result "0-1"]
[ECO "D24"]
[WhiteElo "1983"]
[BlackElo "2180"]
[Annotator "ChessBase"]
[PlyCount "118"]
[EventDate "2019.05.30"]
[EventType "k.o."]
[EventCountry "GER"]
[SourceTitle "playchess.com"]
[Source "ChessBase"]
[SourceQuality "1"]
[TimeControl "40/5400+30:900+30"]

1. d4 {[%emt 0:00:00]} d5 {[%emt 0:00:00]} 2. c4 {[%emt 0:00:00]} dxc4 {[%emt 0:00:00]} 3. Nc3 {[%emt 0:00:13]} a6 {[%emt 0:00:00]} 4. a4 {[%emt 0:00:55]} Nf6 {[%emt 0:00:00]} 5. Nf3 {[%emt 0:00:15]} Nc6 {[%emt 0:00:56]} 6. e4 {[%emt 0:01:18]} Bg4 {[%emt 0:02:57]} 7. Be3 {[%emt 0:01:37]} e6 {[%emt 0:03:52]} 8. Bxc4 {[%emt 0:03:47]} Bb4 {[%emt 0:01:33]} 9. Bd3 {[%emt 0:01:27]} O-O {[%emt 0:05:55]} 10. Bc2 {[%emt 0:00:59]} Re8 {[%emt 0:08:26]} 11. O-O {[%emt 0:01:33]} Bxf3 {[%emt 0:09:18]} 12. gxf3 {[%emt 0:02:16]} e5 {[%emt 0:03:21]} 13. Ne2 {[%emt 0:03:25]} Nh5 {[%emt 0:07:45]} 14. d5 {[%emt 0:02:45]} Na5 {[%emt 0:07:47]} 15. b3 {[%emt 0:06:18]} Qf6 {[%emt 0:05:06]} 16. Ng3 {[%emt 0:02:55]} Nf4 {[%emt 0:01:17]} 17. Kh1 {[%emt 0:02:31]} Rad8 {[%emt 0:08:38]} 18. Nf5 {[%emt 0:05:16]} g6 {[%emt 0:03:11]} 19. Nh6+ {[%emt 0:01:37]} Kf8 {[%emt 0:05:57]} 20. Ng4 {[%emt 0:00:37]} Qg5 {[%emt 0:01:32]} 21. Bd2 {[%emt 0:03:25]} Nc6 {[%emt 0:03:15]} 22. Rg1 {[%emt 0:16:56]} Bxd2 {[%emt 0:01:08]} 23. Qxd2 {[%emt 0:00:12]} Nd4 {[%emt 0:10:54]} 24. Bd1 {[%emt 0:01:05]} Qe7 {[%emt 0:09:12]} 25. Rc1 {[%emt 0:01:24]} c6 {[%emt 0:00:00]} 26. Ne3 {[%emt 0:01:25]} cxd5 {[%emt 0:00:00]} 27. Nxd5 {[%emt 0:01:22]} Nxd5 {[%emt 0:00:00]} 28. Qh6+ {[%emt 0:00:22]} Kg8 {[%emt 0:00:00]} 29. exd5 {[%emt 0:00:09]} Rxd5 {[%emt 0:00:00]} 30. Bc2 {[%emt 0:02:42]} Nxc2 {[%emt 0:00:14]} 31. Rxc2 {[%emt 0:00:12]} Qf6 {[%emt 0:02:19]} 32. Rg3 {[%emt 0:01:45]} Qf4 {[%emt 0:00:41]} 33. Qh3 {[%emt 0:01:33]} e4 {[%emt 0:00:38]} 34. Rc8 {[%emt 0:01:18]} Rd1+ {[%emt 0:00:31]} 35. Kg2 {[%emt 0:00:08]} exf3+ {[%emt 0:00:18]} 36. Rxf3 {[%emt 0:00:12]} Qg5+ {[%emt 0:00:09]} 37. Rg3 {[%emt 0:00:17]} Qd5+ {[%emt 0:00:18]} 38. Rf3 {[%emt 0:00:10]} Qg5+ {[%emt 0:00:46]} 39. Rg3 {[%emt 0:00:07]} Qd5+ {[%emt 0:00:08]} 40. Rf3 {[%emt 0:00:08]} Rxc8 {[%emt 0:00:22]} 41. Qxc8+ {[%emt 0:15:06]} Kg7 {[%emt 0:15:10]} 42. Qc3+ {[%emt 0:01:00]} Qd4 {[%emt 0:00:00]} 43. Qc7 {[%emt 0:00:00]} Qg4+ {[%emt 0:00:00]} 44. Rg3 {[%emt 0:00:00]} Qe4+ {[%emt 0:00:00]} 45. Rf3 {[%emt 0:00:00]} Rg1+ {[%emt 0:00:00]} 46. Kxg1 {[%emt 0:00:00]} Qxf3 {[%emt 0:00:00]} 47. Qb6 {[%emt 0:00:00]} Kh6 {[%emt 0:00:00]} 48. Kf1 {[%emt 0:00:00]} Kh5 {[%emt 0:01:04]} 49. b4 {[%emt 0:01:51]} Kg4 {[%emt 0:01:39]} 50. Ke1 {[%emt 0:00:34]} Kh3 {[%emt 0:00:42]} 51. Qd6 {[%emt 0:00:29]} Kg2 {[%emt 0:00:28]} 52. Qd4 {[%emt 0:01:12]} f5 {[%emt 0:02:11]} 53. Qd2 {[%emt 0:01:41]} Kxh2 {[%emt 0:00:50]} 54. Kf1 {[%emt 0:09:36]} Qh1+ {[%emt 0:00:40]} 55. Ke2 {[%emt 0:00:01]} Qe4+ {[%emt 0:00:08]} 56. Kf1 {[%emt 0:26:54]} Qc4+ {[%emt 0:00:44]} 57. Ke1 {[%emt 0:00:00]} Kg1 {[%emt 0:00:40]} 58. Qg5+ {[%emt 0:00:00]} Qg4 {[%emt 0:00:11]} 59. Qe3 {[%emt 0:00:00]} Qe4 {[%emt 0:00:18]} 0-1

[Event "German Cup 2019"]
[Site "Magdeburg"]
[Date "2019.05.30"]
[Round "2.1"]
[White "Langrock, Hannes"]
[Black "Nguyen, Alex Dac-Vuong"]
[Result "1/2-1/2"]
[ECO "A57"]
[WhiteElo "2367"]
[BlackElo "2287"]
[Annotator "ChessBase"]
[PlyCount "65"]
[EventDate "2019.05.30"]
[EventType "k.o."]
[EventCountry "GER"]
[SourceTitle "playchess.com"]
[Source "ChessBase"]
[SourceQuality "1"]
[TimeControl "40/5400+30:900+30"]

1. d4 {[%emt 0:00:03]} Nf6 {[%emt 0:00:12]} 2. c4 {[%emt 0:00:19]} c5 {[%emt 0:01:43]} 3. d5 {[%emt 0:00:21]} b5 {[%emt 0:00:19]} 4. Qc2 {[%emt 0:00:31]} Na6 {[%emt 0:00:21]} 5. a3 {[%emt 0:00:41]} bxc4 {[%emt 0:00:23]} 6. e4 {[%emt 0:00:48]} Nc7 {[%emt 0:00:21]} 7. Bxc4 {[%emt 0:01:05]} e6 {[%emt 0:00:18]} 8. Nc3 {[%emt 0:00:52]} exd5 {[%emt 0:00:24]} 9. exd5 {[%emt 0:00:21]} d6 {[%emt 0:00:22]} 10. Nge2 {[%emt 0:00:52]} Be7 {[%emt 0:00:22]} 11. b4 {[%emt 0:01:22]} O-O {[%emt 0:01:36]} 12. O-O {[%emt 0:00:53]} Rb8 {[%emt 0:01:19]} 13. bxc5 {[%emt 0:08:30]} dxc5 {[%emt 0:00:32]} 14. Bf4 {[%emt 0:11:35]} Bd6 {[%emt 0:01:44]} 15. Bxd6 {[%emt 0:09:16]} Qxd6 {[%emt 0:00:36]} 16. Ng3 {[%emt 0:02:46]} Re8 {[%emt 0:14:42]} 17. Rfe1 {[%emt 0:06:53]} Bd7 {[%emt 0:16:30]} 18. Nce4 {[%emt 0:12:23]} Nxe4 {[%emt 0:01:21]} 19. Nxe4 {[%emt 0:00:19]} Qe5 {[%emt 0:07:14]} 20. Qc3 {[%emt 0:01:21]} Nxd5 {[%emt 0:03:48]} 21. Qxe5 {[%emt 0:01:43]} Rxe5 {[%emt 0:00:18]} 22. Nxc5 {[%emt 0:01:57]} Rxe1+ {[%emt 0:01:58]} 23. Rxe1 {[%emt 0:00:17]} Bc6 {[%emt 0:01:54]} 24. f3 {[%emt 0:04:28]} Nb6 {[%emt 0:00:37]} 25. Bb3 {[%emt 0:02:09]} Kf8 {[%emt 0:05:20]} 26. Kf2 {[%emt 0:00:53]} Rd8 {[%emt 0:01:11]} 27. Re2 {[%emt 0:04:20]} Rd6 {[%emt 0:08:13]} 28. Rc2 {[%emt 0:03:46]} Bd5 {[%emt 0:04:29]} 29. Rd2 {[%emt 0:05:16]} Ke7 {[%emt 0:00:32]} 30. Re2+ {[%emt 0:00:52]} Kd8 {[%emt 0:01:59]} 31. Rd2 {[%emt 0:01:19]} Ke7 {[%emt 0:00:20]} 32. Re2+ {[%emt 0:00:19]} Kd8 {[%emt 0:00:20]} 33. Rd2 {[%emt 0:00:16]} 1/2-1/2

[Event "German Cup 2019"]
[Site "Magdeburg"]
[Date "2019.05.30"]
[Round "2.1"]
[White "Kopylov, Daniel"]
[Black "Falk, Kristoffer"]
[Result "1-0"]
[ECO "B40"]
[WhiteElo "2263"]
[BlackElo "2019"]
[Annotator "ChessBase"]
[PlyCount "65"]
[EventDate "2019.05.30"]
[EventType "k.o."]
[EventCountry "GER"]
[SourceTitle "playchess.com"]
[Source "ChessBase"]
[SourceQuality "1"]
[TimeControl "40/5400+30:900+30"]

1. e4 {[%emt 0:00:00]} c5 {[%emt 0:00:00]} 2. Nf3 {[%emt 0:00:00]} e6 {[%emt 0:00:00]} 3. g3 {[%emt 0:00:34]} a6 {[%emt 0:02:37]} 4. Bg2 {[%emt 0:01:55]} b5 {[%emt 0:00:25]} 5. O-O {[%emt 0:00:35]} Bb7 {[%emt 0:00:17]} 6. d3 {[%emt 0:00:55]} Be7 {[%emt 0:00:19]} 7. Re1 {[%emt 0:02:12]} d6 {[%emt 0:05:10]} 8. a4 {[%emt 0:00:36]} Nf6 {[%emt 0:01:44]} 9. Na3 {[%emt 0:00:41]} O-O {[%emt 0:04:15]} 10. Bd2 {[%emt 0:03:50]} Qb6 {[%emt 0:05:39]} 11. a5 {[%emt 0:11:38]} Qc7 {[%emt 0:01:43]} 12. b4 {[%emt 0:04:14]} cxb4 {[%emt 0:01:51]} 13. Bxb4 {[%emt 0:01:06]} Nc6 {[%emt 0:00:20]} 14. Bd2 {[%emt 0:03:11]} Nxa5 {[%emt 0:07:52]} 15. c4 {[%emt 0:01:42]} bxc4 {[%emt 0:09:25]} 16. Bxa5 {[%emt 0:00:27]} Qxa5 {[%emt 0:00:04]} 17. Nxc4 {[%emt 0:00:23]} Qc7 {[%emt 0:05:14]} 18. Na5 {[%emt 0:01:01]} Nd7 {[%emt 0:02:40]} 19. Qb1 {[%emt 0:07:53]} Ra7 {[%emt 0:03:03]} 20. Rc1 {[%emt 0:01:55]} Qb8 {[%emt 0:00:14]} 21. Nd4 {[%emt 0:04:45]} Bf6 {[%emt 0:06:43]} 22. Ndc6 {[%emt 0:01:48]} Bxc6 {[%emt 0:00:26]} 23. Nxc6 {[%emt 0:00:09]} Qxb1 {[%emt 0:03:44]} 24. Raxb1 {[%emt 0:00:22]} Raa8 {[%emt 0:00:36]} 25. d4 {[%emt 0:02:29]} Rac8 {[%emt 0:05:22]} 26. Bf1 {[%emt 0:07:58]} Kh8 {[%emt 0:14:19]} 27. Bxa6 {[%emt 0:04:06]} Rc7 {[%emt 0:01:01]} 28. Rb7 {[%emt 0:16:22]} Rfc8 {[%emt 0:04:10]} 29. Ra7 {[%emt 0:01:52]} Rxa7 {[%emt 0:01:40]} 30. Bxc8 {[%emt 0:00:11]} Rc7 {[%emt 0:00:12]} 31. Bxd7 {[%emt 0:00:29]} Rxd7 {[%emt 0:00:02]} 32. e5 {[%emt 0:01:23]} Bd8 {[%emt 0:03:42]} 33. Ra1 {[%emt 0:02:18]} 1-0

[Event "German Cup 2019"]
[Site "Magdeburg"]
[Date "2019.05.30"]
[Round "2.1"]
[White "Gressmann, Moritz"]
[Black "Kueppers, Timo"]
[Result "0-1"]
[ECO "B51"]
[WhiteElo "2180"]
[BlackElo "2312"]
[Annotator "RC"]
[PlyCount "87"]
[EventDate "2019.05.30"]
[EventType "k.o."]
[EventCountry "GER"]
[SourceTitle "playchess.com"]
[Source "ChessBase"]
[SourceQuality "1"]
[TimeControl "40/5400+30:900+30"]

1. e4 {[%emt 0:00:00]} c5 {[%emt 0:00:00]} 2. Nf3 {[%emt 0:00:00]} d6 {[%emt 0:00:00]} 3. Bb5+ {[%emt 0:00:00]} Nd7 {[%emt 0:00:00]} 4. O-O {[%emt 0:00:04]} a6 {[%emt 0:00:00]} 5. Bxd7+ {[%emt 0:00:10]} Bxd7 {[%emt 0:00:00]} 6. d4 {[%emt 0:00:19]} cxd4 {[%emt 0:00:00]} 7. Qxd4 {[%emt 0:00:07]} e6 {[%emt 0:04:35]} 8. c4 {[%emt 0:01:13]} Rc8 {[%emt 0:00:10]} 9. b3 {[%emt 0:01:18]} Be7 {[%emt 0:07:51]} 10. Bb2 {[%emt 0:00:43]} Nf6 {[%emt 0:00:37]} 11. Nbd2 {[%emt 0:01:37]} O-O {[%emt 0:04:25]} 12. Rfe1 {[%emt 0:02:00]} Qc7 {[%emt 0:02:55]} 13. h3 {[%emt 0:05:24]} Rfd8 {[%emt 0:00:57]} 14. Qe3 {[%emt 0:00:53]} b5 {[%emt 0:02:32]} 15. Nh2 {[%emt 0:12:34]} Qb7 {[%emt 0:02:19]} 16. Qg3 {[%emt 0:04:41]} bxc4 {[%emt 0:03:49]} 17. Nxc4 {[%emt 0:02:36]} Rxc4 {[%emt 0:01:33]} 18. Bxf6 {[%emt 0:00:13]} Bxf6 {[%emt 0:00:10]} 19. bxc4 {[%emt 0:01:41]} Bxa1 {[%emt 0:00:10]} 20. Rxa1 {[%emt 0:00:02]} Bc6 {[%emt 0:03:16]} 21. Ng4 {[%emt 0:06:20]} Bxe4 {[%emt 0:10:47]} 22. Rd1 {[%emt 0:05:29]} Qe7 {[%emt 0:05:37]} 23. c5 {[%emt 0:01:17]} d5 {[%emt 0:02:11]} 24. c6 {[%emt 0:03:46]} Rc8 {[%emt 0:02:16]} 25. Rc1 {[%emt 0:02:42]} h5 {[%emt 0:05:18]} 26. Ne5 {[%emt 0:02:24]} Qd6 {[%emt 0:04:22]} 27. Qf4 {[%emt 0:11:48]} f6 {[%emt 0:02:01]} 28. Ng6 {[%emt 0:04:13]} Qa3 {[%emt 0:11:48]} 29. Rc3 {[%emt 0:03:16]} Qxc3 {[%emt 0:00:44]} 30. Ne7+ {[%emt 0:00:07]} Kf8 {[%emt 0:06:21]} 31. Qd6 {[%emt 0:05:09]} Qa1+ {[%emt 0:00:33]} 32. Kh2 {[%emt 0:00:01]} Re8 {[%emt 0:02:18]} 33. Nf5+ {[%emt 0:07:42]} Kg8 {[%emt 0:03:05]} 34. Qd7 {[%emt 0:01:58]} Qe5+ {[%emt 0:00:12]} 35. Ng3 {[%emt 0:00:09]} Qb8 {[%emt 0:01:13]} 36. c7 {[%emt 0:01:04]} Qc8 {[%emt 0:00:08]} 37. Qd6 {[%emt 0:00:26]} Bg6 {[%emt 0:00:37]} 38. f4 {[%emt 0:00:43]} h4 {[%emt 0:02:34]} 39. Ne2 {[%emt 0:00:09]} Kf7 {[%emt 0:00:09]} 40. Nd4 {[%emt 0:01:12]} Re7 {[%emt 0:00:42]} 41. f5 {[%emt 0:17:08]} Bxf5 {[%emt 0:15:34]} 42. Nxf5 {[%emt 0:00:07]} exf5 {[%emt 0:00:33]} 43. Qxd5+ {[%emt 0:00:09]} Kg6 {[%emt 0:00:06]} 44. Qb7 0-1